bitfinex-derivatives/quotes_BTCF0:USTF0_20251120
["timestamp","ask_amount","ask_price","bid_price","bid_amount"]
[1763650567279,0.3608,91284.0,91278.0,0.0109657]
[1763650567480,0.00219803,91283.0,91281.0,0.0109652]
[1763650567675,0.00219803,91283.0,91282.0,0.02972257]
[1763650567883,0.3608,91293.0,91285.0,0.06139]
[1763650568071,0.0024719,91286.0,91285.0,0.00073257]
[1763650568275,0.0024719,91286.0,91265.0,0.00016439]
[1763650568276,0.06419,91266.0,91265.0,0.00016439]
[1763650568471,0.42718803,91266.0,91265.0,0.00016439]
[1763650568783,0.00219803,91266.0,91265.0,0.06228696]
[1763650568982,0.3608,91283.0,91265.0,0.00089696]
[1763650569174,0.00027387,91286.0,91282.0,0.0109652]
[1763650569374,0.00027387,91286.0,91285.0,0.06212257]
[1763650569782,0.0024719,91286.0,91285.0,0.06212257]
[1763650570175,0.3608,91305.0,91287.0,0.0109646]
[1763650570382,0.00219803,91304.0,91291.0,0.0109641]
[1763650570579,0.02955,91293.0,91292.0,0.00073257]
[1763650570779,0.03174803,91293.0,91292.0,0.00073257]
[1763650571183,0.06638803,91293.0,91292.0,0.00073257]
[1763650571478,0.00219803,91293.0,91292.0,0.00073257]
[1763650572186,0.3608,91306.0,91292.0,0.00073257]
[1763650572377,0.00219803,91305.0,91292.0,0.00073257]
[1763650572575,0.02955,91299.0,91298.0,0.0109633]
[1763650572775,0.06419,91305.0,91304.0,0.00073257]
[1763650573087,0.06638803,91305.0,91304.0,0.00073257]
[1763650573593,0.06419,91288.0,91287.0,0.0001643]
[1763650573886,0.03174803,91288.0,91287.0,0.00089687]
[1763650574188,0.3608,91306.0,91287.0,0.00089687]
[1763650574484,0.00219803,91305.0,91302.0,0.0109628]
[1763650574690,0.3608,91324.0,91302.0,0.0109628]
[1763650574691,0.3608,91324.0,91304.0,0.00073257]
[1763650574989,0.00219803,91323.0,91312.0,0.3608]
[1763650575288,0.06638803,91323.0,91322.0,0.00073257]
[1763650575690,0.00219803,91323.0,91322.0,0.00073257]
[1763650575872,0.06638803,91323.0,91322.0,0.00073257]
[1763650576077,0.06638803,91323.0,91305.0,0.3608]
[1763650576289,0.06638803,91323.0,91309.0,0.01169447]
[1763650576475,0.3608,91316.0,91309.0,0.11925447]
[1763650576680,0.06638803,91310.0,91309.0,0.00073257]
[1763650577075,0.00219803,91310.0,91309.0,0.00073257]
[1763650577281,0.06638803,91310.0,91309.0,0.00073257]
[1763650577774,0.3608,91322.0,91309.0,0.02972257]
[1763650577980,0.00219803,91319.0,91310.0,0.18067175]
[1763650578183,0.00219803,91319.0,91318.0,0.00073257]
[1763650578787,0.06638803,91319.0,91318.0,0.00073257]
[1763650579380,0.06419,91309.0,91308.0,0.0001643]
[1763650579579,0.06638803,91309.0,91308.0,0.00089687]
[1763650579982,0.06419,91294.0,91293.0,0.3608]
[1763650580183,0.06638803,91294.0,91293.0,0.36153257]
[1763650581006,0.06638803,91294.0,91284.0,0.0001643]
[1763650581007,0.06419,91285.0,91284.0,0.0001643]
[1763650581176,0.02955,91269.0,91268.0,0.3608]
[1763650581489,0.02955,91269.0,91268.0,0.00073257]
[1763650581490,0.00219803,91269.0,91268.0,0.00073257]
[1763650581694,0.00219803,91269.0,91268.0,0.36153257]
[1763650581881,0.3608,91284.0,91283.0,0.0109651]
[1763650582081,0.06638803,91284.0,91283.0,0.00073257]
[1763650582887,0.42718803,91284.0,91283.0,0.01169767]
[1763650583291,0.00219803,91284.0,91283.0,0.01169767]
[1763650583485,0.00219803,91284.0,91283.0,0.00073257]
[1763650583486,0.06638803,91284.0,91283.0,0.00073257]
[1763650583686,0.42718803,91284.0,91283.0,0.00073257]
[1763650584385,0.06419,91275.0,91274.0,0.0001643]
[1763650584584,0.42718803,91275.0,91250.0,0.3608]
[1763650584789,0.3608,91257.0,91250.0,0.36153257]
[1763650584989,0.36299803,91257.0,91255.0,0.0109683]
[1763650585181,0.42718803,91257.0,91256.0,0.00073257]
[1763650585986,0.42718803,91257.0,91247.0,0.0001643]
[1763650585987,0.06419,91248.0,91247.0,0.0001643]
[1763650586183,0.06419,91241.0,91240.0,0.10752]
[1763650586383,0.06638803,91241.0,91240.0,0.10825257]
[1763650586605,0.06638803,91241.0,91203.0,0.3608]
[1763650586606,0.06419,91232.0,91203.0,0.3608]
[1763650586888,0.36299803,91232.0,91215.0,0.0109732]
[1763650587088,0.42718803,91232.0,91231.0,0.00073257]
[1763650587291,0.06419,91223.0,91222.0,0.0109724]
[1763650587487,0.06638803,91223.0,91222.0,0.01170497]
[1763650587687,0.06647214,91223.0,91222.0,0.01170497]
[1763650587892,0.00228214,91223.0,91222.0,0.01170497]
[1763650588689,8.411e-05,91223.0,91222.0,0.47309497]
[1763650588894,9e-08,91232.0,91231.0,0.0723613]
[1763650589090,0.39035,91254.0,91253.0,0.0109687]
[1763650589285,0.39254803,91254.0,91253.0,0.00073257]
[1763650589496,0.0273,91236.0,91229.0,0.10752]
[1763650589698,0.00219803,91235.0,91233.0,0.010971]
[1763650589888,0.00219803,91235.0,91234.0,0.00073257]
[1763650590088,5.292e-05,91235.0,91234.0,0.00073257]
[1763650590592,0.05701095,91235.0,91234.0,0.00073257]
[1763650591096,0.00225095,91235.0,91234.0,0.00073257]
[1763650591493,5.292e-05,91235.0,91234.0,0.05773257]
[1763650591691,0.00016439,91244.0,91243.0,0.0679699]
[1763650591891,0.00016439,91244.0,91243.0,0.53702247]
[1763650592086,0.3608,91257.0,91243.0,0.53702247]
[1763650592087,0.3608,91257.0,91256.0,0.0109683]
[1763650592293,0.36299803,91257.0,91256.0,0.01170087]
[1763650592493,0.43073803,91257.0,91246.0,0.0109695]
[1763650592792,0.43073803,91257.0,91256.0,0.00073257]
[1763650592985,0.36299803,91257.0,91256.0,0.00073257]
[1763650593496,0.41801803,91257.0,91256.0,0.00073257]
[1763650593997,0.36299803,91257.0,91256.0,0.00073257]
[1763650594596,0.00219803,91257.0,91256.0,0.36153257]
[1763650594784,0.00219803,91257.0,91256.0,0.00073257]
[1763650594990,0.02999803,91257.0,91256.0,0.00073257]
[1763650595496,0.00219803,91257.0,91256.0,0.00073257]
[1763650596102,0.00016439,91266.0,91263.0,0.0109675]
[1763650596308,0.00236242,91266.0,91265.0,0.00073257]
[1763650597201,0.05738242,91266.0,91265.0,0.00073257]
[1763650597400,0.03016242,91266.0,91265.0,0.00073257]
[1763650597590,0.00236242,91266.0,91265.0,0.00073257]
[1763650598499,0.00236242,91266.0,91265.0,0.05850257]
[1763650598905,0.00016439,91266.0,91265.0,0.05850257]
[1763650599792,0.00236242,91266.0,91265.0,0.00073257]
[1763650599995,0.00016439,91266.0,91265.0,0.05850257]
[1763650600503,0.00016439,91266.0,91265.0,0.02953257]
[1763650600694,0.00236242,91266.0,91265.0,0.02953257]
[1763650600895,0.05738242,91266.0,91265.0,0.00073257]
[1763650602005,0.05502,91248.0,91225.0,0.3608]
[1763650602195,0.05502,91226.0,91225.0,0.3608]
[1763650602391,0.05502,91222.0,91221.0,0.0109724]
[1763650602600,0.3608,91236.0,91234.0,0.0109709]
[1763650602790,0.02999803,91235.0,91232.0,0.0109712]
[1763650602992,0.0278,91234.0,91233.0,0.010971]
[1763650603204,0.00016439,91243.0,91242.0,0.01097]
[1763650603394,0.00016439,91243.0,91242.0,0.06874]
[1763650604004,0.00016439,91243.0,91242.0,0.17626]
[1763650604204,0.00236242,91243.0,91240.0,0.3608]
[1763650604398,0.05502,91241.0,91240.0,0.3608]
[1763650604599,0.00219803,91241.0,91240.0,0.3608]
[1763650604794,0.00016439,91243.0,91242.0,0.0288]
[1763650605096,0.00016439,91243.0,91242.0,0.05777]
[1763650605402,0.41582,91265.0,91264.0,0.0109674]
[1763650605710,0.41582,91265.0,91261.0,0.0109677]
[1763650605711,0.02999803,91265.0,91261.0,0.0109677]
[1763650606011,0.05502,91255.0,91246.0,0.10752]
[1763650606198,0.00219803,91255.0,91254.0,0.0397686]
[1763650606398,0.00219803,91255.0,91254.0,0.0109686]
[1763650606606,0.02999803,91255.0,91254.0,0.0109686]
[1763650607310,0.05518439,91264.0,91263.0,0.0109675]
[1763650607496,0.05738242,91264.0,91263.0,0.0109675]
[1763650608404,0.05738242,91264.0,91263.0,0.0687375]
[1763650608405,0.00236242,91264.0,91263.0,0.0687375]
[1763650609311,0.00236242,91264.0,91263.0,0.05777]
[1763650609610,0.05502,91258.0,91257.0,0.4792882]
[1763650609811,0.05721803,91258.0,91257.0,0.4792882]
[1763650610206,0.05721803,91258.0,91257.0,0.3717682]
[1763650610411,0.00219803,91258.0,91257.0,0.3717682]
[1763650610610,0.00219803,91258.0,91252.0,0.10752]
[1763650610911,0.3608,91253.0,91252.0,0.0109688]
[1763650611110,0.36299803,91253.0,91252.0,0.0109688]
[1763650611314,0.41801803,91253.0,91252.0,0.0109688]
[1763650612310,0.36299803,91253.0,91252.0,0.0109688]
[1763650613110,0.00219803,91253.0,91252.0,0.0109688]
[1763650613613,0.00016439,91264.0,91263.0,0.0109675]
[1763650613614,0.02796439,91264.0,91263.0,0.0109675]
[1763650613820,0.00016439,91264.0,91263.0,0.0687375]
[1763650614124,0.3608,91291.0,91288.0,0.0109645]
[1763650614314,0.05502,91277.0,91270.0,0.3608]
[1763650614615,0.05721803,91271.0,91270.0,0.0109666]
[1763650615207,0.38876361,91280.0,91279.0,0.0109656]
[1763650615413,0.00236164,91280.0,91279.0,0.0109656]
[1763650615604,0.00016361,91280.0,91279.0,0.0109656]
[1763650615805,0.03016164,91280.0,91279.0,0.0109656]
[1763650616612,0.0278,91275.0,91268.0,0.10752]
[1763650616808,0.05721803,91274.0,91273.0,0.0109663]
[1763650617317,0.00219803,91274.0,91273.0,0.0109663]
[1763650617905,0.00219803,91274.0,91273.0,0.0397663]
[1763650618516,0.00219803,91274.0,91273.0,0.0288]
[1763650618718,0.05502,91273.0,91272.0,0.0109663]
[1763650618907,0.05721803,91273.0,91272.0,0.0109663]
[1763650619919,0.02999803,91273.0,91272.0,0.0109663]
[1763650620116,0.00219803,91273.0,91272.0,0.0109663]
[1763650620420,0.00219803,91273.0,91269.0,0.1184868]
[1763650620421,0.05502,91270.0,91269.0,0.1184868]
[1763650620621,0.00016361,91280.0,91269.0,0.1762568]
[1763650620812,0.05738164,91280.0,91279.0,0.0109656]
[1763650621016,0.05502,91276.0,91267.0,0.3608]
[1763650621217,0.01951164,91280.0,91266.0,0.010967]
[1763650621218,0.05502,91267.0,91266.0,0.010967]
[1763650621414,0.05721803,91267.0,91266.0,0.010967]
[1763650621611,0.05502,91278.0,91277.0,0.0109657]
[1763650621922,0.05502,91278.0,91266.0,0.010967]
[1763650621923,0.05502,91262.0,91261.0,0.00016439]
[1763650622231,0.41801803,91262.0,91261.0,0.00016439]
[1763650622631,0.05079,91243.0,91242.0,0.3717699]
[1763650622826,0.02687,91240.0,91239.0,0.0109703]
[1763650623024,0.05298803,91240.0,91239.0,0.0109703]
[1763650623629,0.05079,91234.0,91233.0,0.0109711]
[1763650623833,0.00219803,91240.0,91239.0,0.0627704]
[1763650624126,0.00016439,91249.0,91248.0,0.0771293]
[1763650624330,0.02392,91272.0,91271.0,0.0109665]
[1763650624532,0.05079,91264.0,91248.0,0.01436]
[1763650624722,0.00219803,91272.0,91232.0,0.01436]
[1763650624723,0.3608,91249.0,91232.0,0.01436]
[1763650624924,0.05079,91246.0,91243.0,0.0109698]
[1763650625120,0.00219803,91244.0,91241.0,0.1184501]
[1763650625527,0.02392,91242.0,91241.0,0.1184501]
[1763650625733,0.00219803,91242.0,91241.0,0.1184501]
[1763650626031,0.00219803,91242.0,91241.0,0.1702501]
[1763650626236,0.05298803,91242.0,91238.0,0.3608]
[1763650626532,0.05079,91240.0,91239.0,0.0109704]
[1763650626733,0.05298803,91240.0,91239.0,0.0109704]
[1763650627121,0.05079,91234.0,91233.0,0.00016439]
[1763650627322,0.41378803,91234.0,91233.0,0.00016439]
[1763650627827,0.05079,91219.0,91208.0,0.3608]
[1763650628032,0.05079,91217.0,91209.0,0.10748]
[1763650628224,0.3608,91223.0,91208.0,0.3608]
[1763650628225,0.05079,91209.0,91208.0,0.371774]
[1763650628428,0.05079,91209.0,91208.0,0.3608]
[1763650628429,0.05298803,91209.0,91208.0,0.3608]
[1763650628731,0.00219803,91209.0,91208.0,0.0109741]
[1763650629034,0.05079,91207.0,91206.0,0.00027411]
[1763650629237,0.05298803,91207.0,91206.0,0.00027411]
[1763650631142,0.05298803,91207.0,91206.0,0.01124841]
[1763650631434,0.05298803,91207.0,91206.0,4.11e-06]
[1763650631632,0.05079,91200.0,91199.0,0.00016439]
[1763650631822,0.41378803,91200.0,91199.0,0.00016439]
[1763650632022,0.05298803,91200.0,91199.0,0.01113959]
[1763650632223,0.05298803,91200.0,91199.0,0.03641959]
[1763650632224,0.00219803,91200.0,91199.0,0.03641959]
[1763650632429,0.00219803,91200.0,91199.0,0.06293959]
[1763650632738,0.41159,91213.0,91212.0,0.0109736]
[1763650632938,0.41378803,91213.0,91212.0,0.0109736]
[1763650633231,0.05079,91200.0,91199.0,0.00016439]
[1763650633430,0.05079,91200.0,91199.0,0.01113959]
[1763650633431,0.05298803,91200.0,91199.0,0.01113959]
[1763650633938,0.00219803,91200.0,91199.0,0.06293959]
[1763650634133,0.3608,91213.0,91212.0,0.0109736]
[1763650634324,0.3608,91213.0,91212.0,0.0362536]
[1763650634325,0.00219803,91213.0,91212.0,0.0362536]
[1763650634530,0.05079,91209.0,91208.0,0.0109741]
[1763650634734,0.00219803,91213.0,91212.0,0.0109736]
[1763650635023,0.00219803,91213.0,91212.0,0.0362536]
[1763650635231,9e-08,91218.0,91217.0,0.062773]
[1763650635528,0.02611812,91218.0,91217.0,0.371773]
[1763650635725,9e-08,91218.0,91217.0,0.531093]
[1763650635939,0.00219812,91218.0,91217.0,0.531093]
[1763650636443,9e-08,91218.0,91217.0,0.531093]
[1763650636626,0.3608,91255.0,91247.0,0.0109694]
[1763650636932,0.3608,91255.0,91222.0,0.01436]
[1763650636933,0.05079,91248.0,91233.0,0.3608]
[1763650637134,0.00219803,91234.0,91233.0,0.0362511]
[1763650637635,0.00219803,91234.0,91233.0,0.0627711]
[1763650637840,0.00219803,91234.0,91233.0,0.0362511]
[1763650638035,0.00016361,91243.0,91242.0,0.01097]
[1763650638231,0.00236164,91243.0,91242.0,0.01097]
[1763650639044,0.00236164,91243.0,91242.0,0.06277]
[1763650639232,0.3608,91257.0,91256.0,0.0109683]
[1763650639426,0.41378803,91257.0,91248.0,0.0109692]
[1763650639632,0.41378803,91257.0,91239.0,0.01436]
[1763650639831,0.05079,91256.0,91239.0,0.01436]
[1763650640040,0.00219803,91255.0,91254.0,0.0109685]
[1763650640233,0.05298803,91255.0,91254.0,0.0109685]
[1763650640433,0.05298803,91255.0,91246.0,0.3608]
[1763650640743,0.05079,91246.0,91245.0,0.00016439]
[1763650640937,0.05298803,91246.0,91245.0,0.00016439]
[1763650641142,0.05298803,91246.0,91245.0,0.01113399]
[1763650641339,0.00219803,91246.0,91245.0,0.03641399]
[1763650641540,0.05298803,91246.0,91245.0,0.01113399]
[1763650641731,0.05298803,91246.0,91245.0,0.00016439]
[1763650642437,0.05298803,91246.0,91237.0,0.0109706]
[1763650642438,0.05079,91238.0,91237.0,0.0109706]
[1763650642637,0.05298803,91238.0,91237.0,0.0109706]
[1763650643038,0.00219803,91238.0,91237.0,0.0109706]
[1763650643238,0.05079,91233.0,91232.0,0.3608]
[1763650643444,0.05298803,91233.0,91232.0,0.3608]
[1763650643641,0.05298803,91233.0,91232.0,0.0109712]
[1763650643944,0.05298803,91233.0,91228.0,0.00016439]
[1763650643945,0.05079,91229.0,91228.0,0.00016439]
[1763650644147,0.05298803,91229.0,91228.0,0.00016439]
[1763650645842,0.02611803,91229.0,91228.0,0.00016439]
[1763650646043,0.00219803,91229.0,91228.0,0.05196439]
[1763650646953,0.41159,91244.0,91243.0,0.0109699]
[1763650647241,0.36299803,91244.0,91243.0,0.0627699]
[1763650647447,0.3608,91253.0,91246.0,0.0362495]
[1763650647741,0.05315242,91247.0,91246.0,0.0109695]
[1763650647945,0.05315242,91247.0,91246.0,0.0362495]
[1763650648142,0.00016439,91247.0,91246.0,0.0627695]
[1763650649336,0.00016439,91247.0,91233.0,0.3608]
[1763650649337,0.04687,91240.0,91233.0,0.3608]
[1763650649540,0.00219803,91234.0,91233.0,0.3959711]
[1763650649834,0.36096439,91247.0,91246.0,0.0594495]
[1763650649835,0.00016439,91247.0,91246.0,0.0594495]
[1763650650034,0.00236242,91247.0,91246.0,0.04848]
[1763650650238,0.00236242,91247.0,91245.0,0.0109696]
[1763650650449,0.04687,91229.0,91218.0,0.3608]
[1763650650752,0.40986803,91229.0,91218.0,0.3608]
[1763650650946,0.40986803,91229.0,91227.0,0.0109717]
[1763650651345,0.04906803,91229.0,91227.0,0.0109717]
[1763650652145,0.02592803,91229.0,91227.0,0.0109717]
[1763650652345,0.00219803,91229.0,91227.0,0.0109717]
[1763650652950,0.02686803,91229.0,91227.0,0.0109717]
[1763650653647,0.00219803,91229.0,91227.0,0.0109717]
[1763650653949,0.00219803,91229.0,91228.0,0.04674439]
[1763650654253,0.02686803,91229.0,91228.0,0.00016439]
[1763650654552,0.05128803,91229.0,91228.0,0.00016439]
[1763650655751,0.41208803,91229.0,91228.0,0.00016439]
[1763650655962,0.02467,91208.0,91199.0,0.3608]
[1763650656148,0.00219803,91200.0,91199.0,0.3952452]
[1763650656346,0.00219803,91200.0,91199.0,0.4183552]
[1763650656548,0.38547,91218.0,91217.0,0.010973]
[1763650656752,0.43714195,91218.0,91217.0,0.010973]
[1763650657149,0.43714195,91218.0,91201.0,0.10748]
[1763650657150,0.43714195,91218.0,91208.0,0.00016439]
[1763650657349,0.04909,91215.0,91214.0,0.0109733]
[1763650657551,0.05128803,91215.0,91214.0,0.0109733]
[1763650657949,0.04909,91209.0,91208.0,0.00016439]
[1763650658257,0.05128803,91209.0,91208.0,0.00016439]
[1763650658450,0.00219803,91209.0,91208.0,0.00016439]
[1763650658655,0.05128803,91209.0,91208.0,0.00016439]
[1763650659253,0.41208803,91209.0,91208.0,0.00016439]
[1763650659460,0.41208803,91209.0,91181.0,0.3608]
[1763650659461,0.04909,91191.0,91190.0,0.3717763]
[1763650659754,0.04909,91182.0,91181.0,0.3608]
[1763650659957,0.04909,91179.0,91176.0,0.0109779]
[1763650660157,0.05128803,91179.0,91170.0,0.3608]
[1763650660362,0.05128803,91179.0,91175.0,0.010978]
[1763650662264,0.00219803,91179.0,91175.0,0.010978]
[1763650662860,0.00219803,91179.0,91178.0,0.04672245]
[1763650663158,0.05128803,91179.0,91178.0,0.00014245]
[1763650663760,0.04909,91170.0,91169.0,0.00016449]
[1763650663969,0.00219803,91170.0,91169.0,0.04674449]
[1763650664261,0.02686803,91170.0,91169.0,0.00016449]
[1763650664473,0.00219803,91170.0,91169.0,0.04674449]
[1763650664654,0.00232954,91170.0,91169.0,0.04674449]
[1763650664859,1e-08,91170.0,91169.0,0.04674449]
[1763650665062,0.00016449,91188.0,91187.0,0.0344466]
[1763650665258,0.00236252,91188.0,91187.0,0.0344466]
[1763650665455,0.00236252,91188.0,91169.0,0.10768449]
[1763650665456,0.04909,91178.0,91177.0,0.3608]
[1763650665756,0.05128803,91178.0,91177.0,0.3608]
[1763650665959,0.04909,91176.0,91175.0,0.010978]
[1763650666156,0.04909,91176.0,91169.0,0.00016449]
[1763650666157,0.00219803,91176.0,91169.0,0.00016449]
[1763650666357,0.04909,91170.0,91169.0,0.00016449]
[1763650666563,0.05128803,91170.0,91169.0,0.00016449]
[1763650666766,0.05128803,91170.0,91169.0,0.01114329]
[1763650666968,0.05128803,91170.0,91169.0,0.00016449]
[1763650667267,0.00219803,91170.0,91169.0,0.00016449]
[1763650667468,0.05128803,91170.0,91169.0,0.00116449]
[1763650667973,0.00219803,91170.0,91169.0,0.01214329]
[1763650668466,0.04925449,91188.0,91187.0,0.0109766]
[1763650668667,0.05145252,91188.0,91175.0,0.3608]
[1763650668869,0.04909,91170.0,91169.0,0.01414329]
[1763650669171,0.05128803,91170.0,91169.0,0.01314329]
[1763650669358,0.02686803,91170.0,91169.0,0.01314329]
[1763650669555,0.00219803,91170.0,91169.0,0.05872329]
[1763650669867,0.38547,91182.0,91181.0,0.0109774]
[1763650670164,0.41208803,91182.0,91181.0,0.0109774]
[1763650670363,0.41208803,91182.0,91169.0,0.01114329]
[1763650670364,0.41208803,91182.0,91178.0,0.0109777]
[1763650670570,0.04909,91179.0,91178.0,0.0109777]
[1763650670757,0.02686803,91179.0,91178.0,0.0109777]
[1763650670959,0.00219803,91179.0,91178.0,0.0109777]
[1763650671264,0.02686803,91179.0,91178.0,0.0109777]
[1763650672169,0.00016449,91188.0,91187.0,0.0575566]
[1763650672368,0.02467,91184.0,91183.0,0.010977]
[1763650672563,0.02442,91181.0,91176.0,0.10752]
[1763650672766,0.00219803,91177.0,91176.0,0.141968]
[1763650672961,0.02686803,91177.0,91176.0,0.10752]
[1763650673177,0.02686803,91177.0,91176.0,0.010978]
[1763650673567,0.00219803,91177.0,91176.0,0.034448]
[1763650673767,0.02483449,91188.0,91187.0,0.0109766]
[1763650673966,0.02703252,91188.0,91187.0,0.0109766]
[1763650674372,0.02703252,91188.0,91176.0,0.011978]
[1763650674373,0.05145252,91188.0,91176.0,0.001]
[1763650674669,0.04909,91186.0,91176.0,0.001]
[1763650674865,0.04909,91177.0,91176.0,0.011978]
[1763650675070,0.05128803,91177.0,91176.0,0.011978]
[1763650676077,0.05128803,91177.0,91176.0,0.012978]
[1763650676377,0.05128803,91177.0,91176.0,0.011978]
[1763650676671,0.05128803,91177.0,91176.0,0.012978]
[1763650677366,0.05128803,91177.0,91176.0,0.011978]
[1763650677968,0.05128803,91177.0,91176.0,0.001]
[1763650678468,0.02467,91176.0,91175.0,0.010978]
[1763650678668,0.05128803,91176.0,91175.0,0.010978]
[1763650678967,0.00219803,91176.0,91175.0,0.057558]
[1763650679474,0.00219803,91176.0,91175.0,0.010978]
[1763650679475,0.05128803,91176.0,91175.0,0.010978]
[1763650680272,0.00219803,91176.0,91175.0,0.057558]
[1763650680667,0.00016449,91188.0,91178.0,0.0575577]
[1763650680866,0.00016449,91188.0,91187.0,0.0344466]
[1763650681068,0.05145252,91188.0,91187.0,0.0109766]
[1763650681373,0.04909,91185.0,91184.0,0.010977]
[1763650681577,0.06493803,91185.0,91184.0,0.010977]
[1763650681767,0.05128803,91185.0,91184.0,0.010977]
[1763650683178,0.00219803,91185.0,91184.0,0.055107]
[1763650683571,0.00016449,91188.0,91187.0,0.0551066]
[1763650683870,0.00016449,91188.0,91187.0,0.05730463]
[1763650684366,0.4073,91212.0,91211.0,0.0109737]
[1763650684566,0.4329823,91212.0,91211.0,0.01317173]
[1763650684974,0.0465,91204.0,91203.0,0.0109746]
[1763650685179,0.40803267,91204.0,91203.0,0.00219803]
[1763650685373,0.43300425,91204.0,91203.0,0.00219803]
[1763650685779,0.0465,91195.0,91194.0,0.00016449]
[1763650685983,0.07220587,91195.0,91194.0,0.01333832]
[1763650686180,0.43300587,91195.0,91194.0,0.01333832]
[1763650686480,0.43300587,91195.0,91194.0,4.49e-06]
[1763650686679,0.0465,91184.0,91171.0,0.021957]
[1763650686868,0.04723267,91184.0,91183.0,0.37397513]
[1763650687474,0.00073267,91184.0,91183.0,0.41810513]
[1763650688578,0.00073267,91184.0,91183.0,0.40712803]
[1763650688785,0.04723267,91184.0,91183.0,0.00219803]
[1763650689084,0.02575004,91184.0,91183.0,0.04732803]
[1763650689279,0.00073267,91184.0,91183.0,0.04732803]
[1763650689478,0.02359267,91184.0,91183.0,0.04732803]
[1763650689678,0.0486093,91184.0,91183.0,0.04732803]
[1763650689876,0.07224979,91184.0,91183.0,0.00419803]
[1763650690076,0.04723267,91184.0,91183.0,0.00419803]
[1763650690477,0.02359267,91184.0,91183.0,0.02548803]
[1763650690883,0.02359267,91184.0,91183.0,0.00419803]
[1763650690884,0.07224868,91184.0,91183.0,0.00419803]
[1763650691181,0.07224868,91184.0,91183.0,0.00319803]
[1763650691579,0.07224868,91184.0,91183.0,0.00219803]
[1763650691780,0.07224868,91184.0,91183.0,0.01317513]
[1763650691984,0.07224868,91184.0,91183.0,0.01417513]
[1763650692372,0.07224868,91184.0,91174.0,0.36096449]
[1763650692571,0.0465,91179.0,91178.0,0.0109776]
[1763650692778,0.07224868,91179.0,91178.0,0.01317563]
[1763650693171,0.07224868,91179.0,91178.0,0.00219803]
[1763650693377,0.0465,91175.0,91174.0,0.00016449]
[1763650693685,0.07224868,91175.0,91174.0,0.00236252]
[1763650694585,0.07225386,91175.0,91174.0,0.00236252]
[1763650694782,0.02575386,91175.0,91174.0,0.04649252]
[1763650695671,0.04861386,91175.0,91174.0,0.04649252]
[1763650695977,0.02575386,91175.0,91174.0,0.04749252]
[1763650696573,0.07225386,91175.0,91174.0,0.00336252]
[1763650697487,0.07225386,91175.0,91174.0,0.04849252]
[1763650697678,0.02575386,91175.0,91174.0,0.04849252]
[1763650699887,0.02575386,91175.0,91174.0,0.04749252]
[1763650700187,0.07225386,91175.0,91174.0,0.04849252]
[1763650700387,0.07225386,91175.0,91174.0,0.00436252]
[1763650700589,0.07225386,91175.0,91174.0,0.00336252]
[1763650700788,0.0465,91167.0,91166.0,4.23e-06]
[1763650700978,0.0465,91167.0,91135.0,0.3719647]
[1763650700979,0.0465,91148.0,91135.0,0.3719647]
[1763650701178,0.40077717,91167.0,91137.0,0.00219803]
[1763650701179,0.0465,91143.0,91137.0,0.00219803]
[1763650701390,0.00073267,91138.0,91137.0,0.01318073]
[1763650701982,0.00073267,91138.0,91137.0,0.02348803]
[1763650702184,0.00073267,91138.0,91137.0,0.03447073]
[1763650702481,0.00073267,91138.0,91137.0,0.05831073]
[1763650702686,0.00073267,91138.0,91137.0,0.06031073]
[1763650702990,0.00073267,91138.0,91137.0,0.02648803]
[1763650703681,0.00073267,91138.0,91137.0,0.04932803]
[1763650704090,0.04723267,91138.0,91137.0,0.00519803]
[1763650705390,0.00073267,91138.0,91137.0,0.04932803]
[1763650705885,0.04723267,91138.0,91137.0,0.00519803]
[1763650706186,0.0465,91129.0,91128.0,0.00016458]
[1763650706394,0.0465,91127.0,91126.0,0.00011071]
[1763650706703,0.0465,91102.0,91101.0,0.010987]
[1763650706994,0.3608,91113.0,91112.0,0.02129]
[1763650707189,0.00219803,91113.0,91112.0,0.0681557]
[1763650707489,0.0465,91133.0,91132.0,0.0109833]
[1763650707681,0.00231894,91133.0,91132.0,0.0551133]
[1763650707883,4e-08,91133.0,91132.0,0.05731133]
[1763650708501,0.00016458,91142.0,91141.0,0.0551122]
[1763650708792,0.00089725,91142.0,91141.0,0.41811023]
[1763650709191,0.4073,91166.0,91165.0,0.0109793]
[1763650709388,0.00073267,91166.0,91165.0,0.05730733]
[1763650709789,0.40626,91176.0,91175.0,0.0109781]
[1763650709988,0.40699267,91176.0,91175.0,0.01317613]
[1763650710492,0.38439267,91176.0,91175.0,0.01317613]
[1763650710888,0.38439267,91176.0,91175.0,0.00219803]
[1763650710889,0.40620267,91176.0,91175.0,0.00219803]
[1763650711088,0.04467,91167.0,91166.0,0.00016458]
[1763650711289,0.40620267,91167.0,91166.0,0.00236261]
[1763650711589,0.40620267,91167.0,91166.0,0.00016458]
[1763650711891,0.04467,91148.0,91145.0,0.0109816]
[1763650712092,0.04467,91147.0,91146.0,0.00219803]
[1763650712293,0.00073267,91147.0,91146.0,0.02494803]
[1763650712495,0.02341267,91147.0,91146.0,0.02494803]
[1763650712685,0.02341267,91147.0,91146.0,0.00219803]
[1763650713787,0.04520267,91147.0,91146.0,0.00219803]
[1763650713990,0.04520267,91147.0,91146.0,0.00319803]
[1763650714597,0.04520267,91147.0,91146.0,0.00219803]
[1763650716392,0.02341267,91147.0,91146.0,0.02436803]
[1763650716792,0.04520267,91147.0,91146.0,0.00219803]
[1763650717385,0.00073267,91147.0,91146.0,0.04729803]
[1763650717590,0.00073267,91147.0,91146.0,0.00219803]
[1763650717591,0.04520267,91147.0,91146.0,0.00219803]
[1763650719086,0.04520267,91147.0,91146.0,0.02436803]
[1763650719895,0.00073267,91147.0,91146.0,0.04729803]
[1763650720193,0.00016458,91156.0,91155.0,0.0560805]
[1763650720499,0.3608,91172.0,91171.0,0.0109786]
[1763650720797,0.40600267,91172.0,91171.0,0.01317663]
[1763650721185,0.04520267,91172.0,91171.0,0.03534663]
[1763650721600,0.04520267,91172.0,91171.0,0.00219803]
[1763650721896,0.40600267,91172.0,91171.0,0.00219803]
[1763650722194,0.04447,91163.0,91162.0,0.00016458]
[1763650722500,0.04520267,91163.0,91162.0,0.00236261]
[1763650724195,0.04520267,91163.0,91162.0,0.00016458]
[1763650724501,0.04447,91148.0,91147.0,0.3717815]
[1763650724704,0.04520267,91148.0,91147.0,0.37397953]
[1763650724992,0.3608,91164.0,91163.0,0.0560795]
[1763650725196,0.36153267,91164.0,91163.0,0.05827753]
[1763650725799,0.40600267,91164.0,91163.0,0.00219803]
[1763650725998,0.04447,91158.0,91154.0,0.00016458]
[1763650726189,0.04520267,91155.0,91154.0,0.00236261]
[1763650727895,0.04520267,91155.0,91154.0,0.00336261]
[1763650728098,0.00073267,91155.0,91154.0,0.04846261]
[1763650728297,0.00073267,91155.0,91154.0,0.04746261]